Cogmind - Beta 17 @@@ ROGUE MODE // 2026.07.04 @ 21:50:02 Player: mnowakowski Result: Destroyed by Y-45 Defender with Heavy Assault Rifle Performance ------------- Evolutions (1) 500 Regions Visited (4) 800 Robots Destroyed (31) 155 Value Destroyed (993) 993 Prototype IDs (2) 40 Alien Tech Used (0) 0 Bonus (0) 0 TOTAL SCORE: 2488 Bonus ------- None Cogmind --------- Core Integrity 0/400 Matter 300/300 Energy 16/100 System Corruption 1% Temperature Cool (9) Movement Core (100) Ox1 Location -9/Storage Parts ------- > --- POWER (1) -------- (None) > --- PROPULSION (3) --- (None) > --- UTILITY (3) ------ Heat Sink Visual Processing Unit > --- WEAPON (2) ------- Spread Laser > --- INVENTORY (5) ---- Spread Laser Peak State ------------ > --- POWER ------------ Ion Engine > --- PROPULSION ------- Aluminum Leg Aluminum Leg Aluminum Leg > --- UTILITY ---------- Heat Sink Visual Processing Unit Hardened Light Armor Plating > --- WEAPON ----------- Heavy Assault Rifle Improved Assault Rifle > --- INVENTORY -------- Aluminum Leg EM Shotgun Spread Laser Spread Laser Improved Assault Rifle [Rating: 15] Favorites ----------- Power Light Ion Engine Engine Light Ion Engine Power Core Light Nuclear Core Propulsion Aluminum Leg Treads Light Treads Leg Aluminum Leg Utility Heat Sink Device Heat Sink Processor Visual Processing Unit Protection Light Armor Plating Weapon Improved Assault Rifle Energy Gun Medium Laser Ballistic Gun Improved Assault Rifle Build | -11 -10 -10 -9 -9 ------- Run | Yrd Mat Min Mat Sto Slots Evolved 2 | . . . 2 . Power . | . . . . . Propulsion 1 | . . . 1 . Utility 1 | . . . 1 . Weapon . | . . . . . Parts Attached 34 | 4 4 1 9 16 Power 5 | 1 1 . 2 1 Engine 4 | 1 . . 2 1 Core 1 | . 1 . . . Reactor . | . . . . . Propulsion 11 | 2 . . 5 4 Treads 5 | . . . 5 . Leg 6 | 2 . . . 4 Wheel . | . . . . . Hover . | . . . . . Flight . | . . . . . Utility 5 | . 1 . 1 3 Device 2 | . 1 . . 1 Storage . | . . . . . Processor 1 | . . . . 1 Hackware . | . . . . . Protection 2 | . . . 1 1 Artifact . | . . . . . Weapon 13 | 1 2 1 1 8 Energy Gun 8 | 1 2 1 . 4 Energy Cannon . | . . . . . Ballistic Gun 5 | . . . 1 4 Ballistic Cannon . | . . . . . Launcher . | . . . . . Special Weapon . | . . . . . Impact Weapon . | . . . . . Slashing Weapon . | . . . . . Piercing Weapon . | . . . . . Special Melee Weapon . | . . . . . Unidentified Prototypes 2 | . . . . 2 Parts Lost 23 | . . 4 1 18 Power 3 | . . 1 . 2 Propulsion 9 | . . 1 1 7 Utility 3 | . . . . 3 Weapon 8 | . . 2 . 6 Highest Loss Streak 4 | . . 4 1 4 To Critical Strikes . | . . . . . Average Backups 4 | 3 4 4 2 4 Power . | . 1 2 . . Propulsion . | 1 2 2 . . Utility . | . . . . . Weapon 2 | . 1 . 1 3 Tool/Special . | . . . . . Unused Backups 1 | . . . . 1 Power . | . . . . . Propulsion . | . . . . . Utility . | . . . . . Weapon 1 | . . . . 1 Tool/Special . | . . . . . Average Slot Usage (%) 75 | . 79 72 69 77 Engine 6 | . 6 . 7 9 Core 3 | . 7 9 . . Treads 12 | . . . 25 15 Leg 14 | . 28 23 . 12 Device 10 | . 11 14 11 9 Processor 2 | . . . . 4 Protection 3 | . . . 5 5 Energy Gun 13 | . 24 23 11 5 Ballistic Gun 8 | . . . 8 14 Peak Build Rating 15 | 4 9 9 10 15 Average Rating 8 | 3 7 7 6 10 On Entrance 5 | . 4 9 3 10 Avg Prop Armor Cover (%) . | . . . . . Naked Turns . | . . . . . Heaviest Build 17 | 5 11 11 9 17 Greatest Support 63 | 20 20 20 63 63 Greatest Overweight (x) 1 | . . 1 . 1 Average Overweight (x) . | . . . . . Largest Inventory Capacity 5 | 5 5 5 5 5 Average Capacity 5 | 5 5 5 5 5 Most Carried 5 | 5 5 5 5 5 Average Carried 4 | 3 4 4 2 3 Final Capacity 5 | 5 5 5 5 5 Final Carried 5 | 5 5 4 5 1 Class Distribution -------------------- 53% | Mutant 46% | Scavenger-Mutant Dominant Class ---------------- Mutant | -10/Materials Mutant | -10/Mines Mutant | -9/Materials Scavenger-Mutant | -9/Storage Resources | -11 -10 -10 -9 -9 ----------- Run | Yrd Mat Min Mat Sto Matter Collected 756 | 202 61 7 98 388 Remotely . | . . . . . Salvage Created 1190 | . 145 102 196 747 Parts 68 | . 9 2 15 42 Haulers Intercepted . | . . . . . Recyclers Shooed . | . . . . . Parts Field Recycled . | . . . . . Retrieved Matter . | . . . . . Parts Self-Destructed . | . . . . . Prevented . | . . . . . Parts Restored . | . . . . . Kills | -11 -10 -10 -9 -9 ------- Run | Yrd Mat Min Mat Sto Combat Hostiles Destroyed 31 | . 5 2 7 17 Guns 30 | . 4 2 7 17 Classes Destroyed 3 | . 2 . 1 . Swarmer 7 | . 3 . 4 . Grunt 19 | . 2 2 1 14 Sentry 5 | . . . 2 3 Best Kill Streak 5 | . 3 2 4 5 Combat Bots Only 5 | . 3 2 4 5 Max Kills in Single Turn 2 | . 1 2 1 1 Gunslinging 1 | . . 1 . . Exploded . | . . . . . Melee . | . . . . . Uniques/NPCs Destroyed . | . . . . . Combat | -11 -10 -10 -9 -9 -------- Run | Yrd Mat Min Mat Sto Hostile Shots Fired 296 | . 28 49 47 172 Missed 67 | . 7 14 8 38 Hits 229 | . 21 35 39 134 Projectile 229 | . 21 35 39 134 Critical Strikes 3 | . . 1 . 2 Damage Taken 2814 | . 223 409 424 1758 Core 620 | . 48 170 81 321 Absorbed by Shields . | . . . . . Core Remaining (%) 56 | 100 . 12 . . Volleys Fired 110 | . 13 11 24 62 Largest 2 | . 2 2 2 2 Hottest 115 | . 115 115 60 110 Shots Fired 197 | . 26 19 37 115 Gun 197 | . 26 19 37 115 Cannon . | . . . . . Launcher . | . . . . . Special . | . . . . . Kinetic 100 | . . . 13 87 Thermal 95 | . 26 19 24 26 Explosive . | . . . . . Electromagnetic 2 | . . . . 2 Robot Hit Streak 14 | . 7 10 13 14 Robot Miss Streak 6 | . 3 6 4 3 Penetration Max . | . . . . . Secondary Targets 6 | . 1 1 . 4 Max Gunslinging Chain 1 | . 1 1 . 1 Shots Hit Robots 142 | . 13 12 25 92 Core Hits 57 | . 7 4 11 35 Critical Kills . | . . . . . Critical Parts Destroyed . | . . . . . Critical Strikes 7 | . 5 . . 2 Burn 7 | . 5 . . 2 Melee Attacks . | . . . . . Impact . | . . . . . Slashing . | . . . . . Piercing . | . . . . . Sneak Attacks . | . . . . . Combat Hostiles . | . . . . . Follow-up Attacks . | . . . . . Damage Inflicted 1992 | . 163 203 271 1355 Guns 1990 | . 163 203 271 1353 Cannons . | . . . . . Explosions . | . . . . . Melee . | . . . . . Ramming 2 | . . . . 2 Kinetic 1144 | . . . 82 1062 Thermal 830 | . 163 203 189 275 Explosive . | . . . . . Electromagnetic 16 | . . . . 16 Impact . | . . . . . Slashing . | . . . . . Piercing . | . . . . . Highest Corruption 1 | . . . . 1 Average Corruption 1 | . . . . 1 Corruption Purged . | . . . . . Corruption Blocked . | . . . . . Effects 2 | . . . . 2 Message Errors 1 | . . . . 1 Misfires 1 | . . . . 1 Overload Shots . | . . . . . Overflow Damage . | . . . . . Projectiles . | . . . . . Explosions . | . . . . . Melee . | . . . . . Knockbacks . | . . . . . Impact . | . . . . . Kinetic . | . . . . . Secondary . | . . . . . Self-Inflicted Damage . | . . . . . Shots . | . . . . . Rammed . | . . . . . Targets Rammed 1 | . . . . 1 Kicked 1 | . . . . 1 Crushed . | . . . . . Highest Temperature 409 | . 129 282 6 409 Average Temperature 86 | . 56 146 5 73 Received Heat Transfer 1332 | . 87 243 129 873 Siege Activations . | . . . . . Martial Activations . | . . . . . Shielding Activations . | . . . . . Robots Disrupted . | . . . . . Combat Hostiles . | . . . . . Robots Corrupted . | . . . . . Combat Hostiles . | . . . . . Parts Fried . | . . . . . Impact Corruptions . | . . . . . Robots Melted 1 | . 1 . . . Combat Hostiles 1 | . 1 . . . Parts Melted 6 | . 1 2 2 1 Heat Transferred 2589 | . 851 531 425 782 Parts Sabotaged . | . . . . . Parts Stolen . | . . . . . Parts Stripped . | . . . . . Power Chain Reactions . | . . . . . Alert | -11 -10 -10 -9 -9 ------- Run | Yrd Mat Min Mat Sto Maximum Alert Level . | . . . . . Low Security (%) 100 | 100 100 100 100 100 Level 1 . | . . . . . Level 2 . | . . . . . Level 3 . | . . . . . Level 4 . | . . . . . Level 5 . | . . . . . High Security . | . . . . . Max Security . | . . . . . Peak Influence 130 | . 105 50 130 96 Initial 20 | . . 13 . 20 Average 36 | . 49 2 72 34 Influence Increases 783 | . 135 50 188 410 Destroy 0b10 Robot/C 620 | . 100 40 140 340 Destroy Leader 140 | . 20 10 40 70 Successful Hack 8 | . . . 8 . Lose Combat Pursuer 15 | . 15 . . . Influence Decreases 733 | . 100 85 140 408 Entered New Map 50 | . . 22 . 28 Time Decay 493 | . 100 23 130 240 Lost Part 190 | . . 40 10 140 Squads Dispatched 6 | . 1 1 1 3 Investigation 1 | . . . . 1 Extermination . | . . . . . Reinforcement 3 | . 1 . 1 1 Assault 1 | . . 1 . . Garrison 1 | . . . . 1 Intercept . | . . . . . Searches Triggered . | . . . . . Construction Impeded . | . . . . . Haulers Reinforced . | . . . . . Active Scanning Responses . | . . . . . Cargo Convoy Interrupts . | . . . . . Stealth | -11 -10 -10 -9 -9 --------- Run | Yrd Mat Min Mat Sto Distress Signals 6 | . 1 . 1 4 Communications Jammed . | . . . . . Distress Signals . | . . . . . Times Spotted 54 | . 11 5 8 30 Peak Tracking Total 7 | . 4 4 7 6 Tactical Retreats 1 | . 1 . . . Traps | -11 -10 -10 -9 -9 ------- Run | Yrd Mat Min Mat Sto Traps Triggered 3 | . . . 2 1 Indirectly . | . . . . . Trap Hack Attempts . | . . . . . Triggered . | . . . . . Disarmed . | . . . . . Reprogrammed . | . . . . . Reused . | . . . . . Traps Extracted . | . . . . . Installed . | . . . . . Triggered . | . . . . . Machines | -11 -10 -10 -9 -9 ---------- Run | Yrd Mat Min Mat Sto Machines Disabled . | . . . . . Max in Single Turn . | . . . . . Machines Repaired . | . . . . . Machines Dismantled . | . . . . . Machines Sabotaged . | . . . . . Overloaded Fab Kills . | . . . . . Hacking | -11 -10 -10 -9 -9 --------- Run | Yrd Mat Min Mat Sto Machines Accessed 4 | . . . 2 2 Terminals 3 | . . . 1 2 Fabricators . | . . . . . Repair Stations . | . . . . . Recycling Units . | . . . . . Scanalyzers 1 | . . . 1 . Garrison Access . | . . . . . Total Hacks 9 | . . . 6 3 Successful 6 | . . . 5 1 Failed 3 | . . . 1 2 Catastrophic 1 | . . . . 1 Database Lockouts . | . . . . . Manual 1 | . . . . 1 Terminals 6 | . . . 3 3 Fabricators . | . . . . . Repair Stations . | . . . . . Recycling Units . | . . . . . Scanalyzers 3 | . . . 3 . Garrison Access . | . . . . . Terminal Hacks 3 | . . . 2 1 Record 2 | . . . 2 . Open Door 1 | . . . . 1 Fabricator Hacks . | . . . . . Repair Station Hacks . | . . . . . Recycling Unit Hacks . | . . . . . Scanalyzer 3 | . . . 3 . Insert Component 1 | . . . 1 . Analyze 1 | . . . 1 . Retrieve Study 1 | . . . 1 . Garrison Access Hacks . | . . . . . Unauthorized Hacks . | . . . . . Terminals . | . . . . . Fabricators . | . . . . . Repair Stations . | . . . . . Recycling Units . | . . . . . Scanalyzers . | . . . . . Garrison Access . | . . . . . Data Cores Recovered . | . . . . . Used . | . . . . . Hacking Detections 2 | . . . 1 1 Full Trace Events 2 | . . . 1 1 Feedback Events . | . . . . . Feedback Blocked . | . . . . . Robot Schematics Acquired . | . . . . . Robots Built . | . . . . . Authchips . | . . . . . Time . | . . . . . Total Robot Build Rating . | . . . . . Part Schematics Acquired 1 | . . . 1 . Parts Built . | . . . . . Authchips . | . . . . . Time . | . . . . . Total Part Build Rating . | . . . . . Part Studies Acquired 1 | . . . 1 . Parts Repaired . | . . . . . Time . | . . . . . Parts Recycled . | . . . . . Recycled Matter . | . . . . . Retrieved Matter . | . . . . . Retrieved Components . | . . . . . Parts Scanalyzed 1 | . . . 1 . Part Schematics Acquired 1 | . . . 1 . Parts Damaged . | . . . . . Bothacking | -11 -10 -10 -9 -9 ------------ Run | Yrd Mat Min Mat Sto Used RIF Installer . | . . . . . Robots Hacked . | . . . . . Non-combat . | . . . . . Combat . | . . . . . Robot Hacks Applied . | . . . . . Relay Couplers Released . | . . . . . Fabnet Peak Effective % . | . . . . . Robots Rewired . | . . . . . Allies Hacked . | . . . . . Hacks Repelled . | . . . . . Allies | -11 -10 -10 -9 -9 -------- Run | Yrd Mat Min Mat Sto Total Allies 1 | . . 1 . . Largest Group 1 | . . 1 . . Highest-Rated Group 31 | . . 31 . . Highest-Rated Ally 31 | . . 31 . . Total Orders . | . . . . . Ally Attacks 5 | . . 5 . . Total Damage 85 | . . 85 . . Kills . | . . . . . Allies Corrupted . | . . . . . Allies Melted . | . . . . . Intel | -11 -10 -10 -9 -9 ------- Run | Yrd Mat Min Mat Sto Active Infowar (turns) 306 | . . . . 306 Optics 306 | . . . . 306 Robot Analysis Total . | . . . . . Derelict Logs Recovered . | . . . . . Drone Launches . | . . . . . Drone Recoveries . | . . . . . Exploration | -11 -10 -10 -9 -9 ------------- Run | Yrd Mat Min Mat Sto Turns Passed 1730 | 72 258 301 308 791 Spaces Moved 954 | 54 156 199 142 403 Core 11 | 7 . . . 4 Treads 329 | . . . 142 187 Legs 614 | 47 156 199 . 212 Wheels . | . . . . . Hover . | . . . . . Flight . | . . . . . Fastest Speed 50 | 50 120 120 160 100 Average Speed 133 | 110 120 120 160 138 Slowest Speed 190 | 120 120 190 160 160 Overloaded Moves . | . . . . . Propulsion Burnouts . | . . . . . Robots Hopped . | . . . . . Potential Cave-ins . | . . . . . Cave-ins Triggered . | . . . . . Exploration Rate (%) 31 | 3 36 39 11 66 Regions Visited 4 Branch Regions 2 Pre-discovered Areas . | . . . . . Known Exits Taken . | . . . . . Unknown Exits Taken 4 | 1 1 1 1 . Scrap Searched . | . . . . . Spaces Dug . | . . . . . Terrain Destroyed . | . . . . . Melee . | . . . . . Projectile . | . . . . . AOE . | . . . . . Terrain Rammed . | . . . . . Walls Destroyed . | . . . . . Machines Disabled . | . . . . . Actions | -11 -10 -10 -9 -9 --------- Run | Yrd Mat Min Mat Sto Total 1219 | 66 201 242 188 522 Wait 82 | . 26 30 . 26 Move 950 | 53 155 198 141 403 Hop . | . . . . . Pick Up 30 | 9 1 1 10 9 Fast Attach 8 | . 2 . 3 3 Attach 28 | 4 1 1 9 13 Detach . | . . . . . Swap 3 | . 1 . . 2 Drop 7 | . 2 1 1 3 Fire 110 | . 13 11 24 62 Melee . | . . . . . Ram . | . . . . . Kick 1 | . . . . 1 Crush . | . . . . . Escape Stasis . | . . . . . Rewire . | . . . . . Trap . | . . . . . Miscellaneous . | . . . . . Route ------- -11/Scrapyard -10/Materials -10/Mines -9/Materials -9/Storage History --------- Turn | Location | Event 4 | -11/Scrapyard | Discovered new exit (range 15) 73 | -11/Scrapyard | Entered Materials 210 | -10/Materials | Discovered new exit (range 15) 310 | -10/Materials | Build established: Mutant 331 | -10/Materials | Entered Mines 357 | -10/Mines | Discovered new exit (range 10) 448 | -10/Mines | Met a Derelict testing a Signal Generator 541 | -10/Mines | Core integrity fell below 50% 577 | -10/Mines | Lost 4 parts (1p1n2w) 590 | -10/Mines | Core integrity fell below 20% 632 | -10/Mines | Entered Materials 632 | -9/Materials | Evolved 2 slots: Propulsion x1, Utility x1 922 | -9/Materials | Discovered new exit (range 5) 940 | -9/Materials | Entered Storage 1127 | -9/Storage | Build established: Scavenger-Mutant 1313 | -9/Storage | Lost 3 parts (1p1n1u) 1322 | -9/Storage | Core integrity fell below 50% 1366 | -9/Storage | Lost 4 parts (2n1u1w) 1571 | -9/Storage | Lost 3 parts (1n1u1w) 1638 | -9/Storage | Core integrity fell below 20% 1689 | -9/Storage | Lost 3 parts (2n1w) 1725 | -9/Storage | Garrison activated, responded to threat 1731 | -9/Storage | Destroyed by Y-45 Defender with Heavy Assault Rifle Last Messages --------------- 01646_ Aluminum Leg destroyed. 01658_ Imp. Assault Rifle destroyed. 01686_ ALERT: Hostiles spotted, dispatching reinforcements to Terminal S002. 01713_ Ion Engine destroyed. 01715_ Kicked O-16 Technician. 01719_ Hvy. Assault Rifle+ destroyed. 01719_ Aluminum Leg destroyed. 01722_ G-34 Mercenary destroyed. 01722_ Switching to secondary target: Y-45 Defender. 01725_ Y-45 Defender calls for garrison reinforcements. 01725_ ALERT: Activating Garrison Access S001. 01728_ System corrupted: FCS attempts to trigger Spread Laser. 01728_ System corrupted: Spread Laser misfires. 01728_ Y-45 Defender destroyed. 01729_ Acquired 42 matter. 01731_ EM Shotgun destroyed. Map ----- +----------------------------------------------------+ | | | | | | | | | | | | | | | | | | | | | | | | | | | | | | | | | | | | | ??????####????????????????????????????????? | | ??????# ???????????????????????????????? | | ?????"" """ ??????????????????????????????? | | ????"G """ ########## #???????????????? | | ?????"" """ / ???????? | | ??????# # ###### #???????????????? | | ??????# ??# [!#######+###??????????????? | | ??????###????# =Y/@[ #??#???????????? | | ?????????????# ###[ # #???##??????? | | ?????????????# #?#*"T" [[ # #?? ??????? | | ?????????????# #?# [ # #? ??????? | | ?????????????# #?########### # ? ?????? | | ?????????????# #????# # ?????? | | ?????????????# #????# + ??????# | | ????????######+#????# "" #? ????????# | | ????????# #????# "Y #+#????# # | | ????????# ###### "" #?# + | | ????????# + #?# # | | ????????# ####### #?# ??# | | ????????# #""???# ^%[ ### ?# | | ????????# #"R"??# / # | | ????????########" "### [ | | ??????????????# !# | | ??????????????# """ # ####+#### | | ??????????????# """ + #???????### | | ?????????????#T """ # ##########?????????? | | ?????????????## # #??????????????????? | | ??????????????#! !# #??????????????????? | | ??????????????####T# # #??????????????????? | | ?????????????????##### #??????????????????? | | ?????????????????????# #?????????????????## | | ?????????????????????# #?????????????????#" | +----------------------------------------------------+ Best States ------------- Heat Dissipation 38 Energy Generation 14 Energy Capacity 250 Matter Stores 300 Matter Capacity 300 Sight Range 18 Terrain Scan Density 10 Armor Coverage 150 Evasion (%) 55 Recoil Reduction 3 Item Schematics ----------------- Hvy. Assault Rifle | -9/Materials | Scanalyzed Robot Schematics ------------------ None Fabricated ------------ Nothing Repaired ---------- Nothing Studied --------- Hvy. Assault Rifle | -9/Materials | Hacked Alien Tech Used ----------------- None Achievements -------------- None Challenges ------------ None Game ------ Seed 713946 Manual? 1 Play Time 00:28:31 Cumulative 8.1 hours Start 2026.07.04 @ 21:22:55 End 2026.07.04 @ 21:50:02 Sessions 1 Manual Loads 0 Difficulty Rogue Special Mode None Game No. 15 Rogue 15 Adventurer 0 Explorer 0 Win Type - Total 0 Types 0/0/0/0/0/0/0/0/0/0 Lore% 9 Gallery% 10 Achievement% 9 Wizard Run 0 Options --------- Layout 1 ASCII 0 Keyboard 0 Movement Mouse Keybinds 0 Fullscreen 2 Font 20/Terminus Map View 50x35 Zoom Use 0% Tactical HUD 1 Map Filters NONE Filters NONE Steam 1 RUN: 4140089c-7aae-42e7-9b31-ed312a43ee21